bitfinex-derivatives/quotes_BTCF0:USTF0_20250129
["timestamp","ask_amount","ask_price","bid_price","bid_amount"]
[1738183249553,0.553087,104020.0,104000.0,0.1]
[1738183249753,0.553087,104020.0,104000.0,0.292308]
[1738183249965,0.36094397,104020.0,104010.0,0.192298]
[1738183250553,0.00014397,104020.0,104010.0,0.192298]
[1738183250754,0.00114397,104020.0,104010.0,0.553098]
[1738183251747,0.36294397,104020.0,104000.0,0.30649711]
[1738183251948,0.553098,104010.0,104000.0,0.10014397]
[1738183252152,0.192339,103990.0,103960.0,0.192378]
[1738183252352,0.75602159,104000.0,103950.0,0.7833]
[1738183252553,0.75602159,104000.0,103960.0,0.3608]
[1738183252757,0.75602159,104000.0,103970.0,0.192355]
[1738183252950,0.553122,104000.0,103970.0,0.192355]
[1738183253454,0.001,103990.0,103980.0,0.192353]
[1738183253659,0.001,103990.0,103980.0,0.593153]
[1738183253959,0.00014397,104000.0,103990.0,0.192335]
[1738183254148,0.001,104020.0,104010.0,0.192298]
[1738183254358,0.3608,104050.0,104020.0,0.192275]
[1738183254653,0.3608,104050.0,104020.0,0.75597459]
[1738183254854,0.3608,104030.0,104010.0,0.3608]
[1738183255051,0.3608,104020.0,104000.0,0.001]
[1738183255357,0.3608,104020.0,103990.0,0.762833]
[1738183255546,0.001,104000.0,103990.0,0.77594167]
[1738183255952,0.001,104000.0,103990.0,0.77608564]
[1738183256154,0.36194397,104020.0,103990.0,0.77608564]
[1738183256960,0.36194397,104020.0,104000.0,0.553116]
[1738183257255,0.36194397,104020.0,104000.0,0.192316]
[1738183257662,0.36194397,104020.0,104000.0,0.663116]
[1738183257663,0.00114397,104020.0,104000.0,0.663116]
[1738183257850,0.00014397,104020.0,104000.0,0.75601559]
[1738183258354,0.00014397,104020.0,104010.0,0.553098]
[1738183258553,0.00014397,104020.0,104010.0,0.603098]
[1738183258758,0.00114397,104020.0,104010.0,0.553098]
[1738183259162,0.55422397,104020.0,104010.0,0.23]
[1738183259462,0.36194397,104020.0,104010.0,0.23]
[1738183259662,0.00114397,104020.0,104010.0,0.231]
[1738183259859,0.00114397,104020.0,104010.0,0.234]
[1738183260064,0.00114397,104020.0,104010.0,0.787098]
[1738183260358,0.00114397,104020.0,104010.0,0.786098]
[1738183260560,0.553027,104050.0,104030.0,0.192255]
[1738183260862,0.192207,104060.0,104040.0,0.553037]
[1738183261061,0.3608,104070.0,104050.0,0.55302]
[1738183261368,0.38971928,104080.0,104060.0,0.192193]
[1738183261665,0.38971928,104080.0,104060.0,0.75589259]
[1738183262055,0.38986325,104080.0,104060.0,0.75603656]
[1738183262256,0.19769125,104080.0,104070.0,0.552987]
[1738183262459,0.19769125,104080.0,104070.0,0.756487]
[1738183262854,0.20669125,104080.0,104070.0,0.756487]
[1738183263060,0.21269125,104080.0,104070.0,0.756487]
[1738183263260,0.20369125,104080.0,104070.0,0.756487]
[1738183263465,0.21269125,104080.0,104070.0,0.756487]
[1738183263665,0.01514397,104080.0,104070.0,0.756487]
[1738183263872,0.22576832,104090.0,104080.0,0.39506859]
[1738183264256,0.11400808,104090.0,104080.0,0.39506859]
[1738183264460,0.11400808,104090.0,104070.0,0.5653]
[1738183264655,0.30615908,104090.0,104070.0,0.757484]
[1738183264861,0.192169,104080.0,104070.0,0.001]
[1738183265057,0.11415205,104090.0,104070.0,0.4248]
[1738183265264,0.11415205,104090.0,104080.0,0.75586859]
[1738183265570,0.11415205,104090.0,104080.0,0.80686859]
[1738183265762,0.1,104100.0,104090.0,0.19215]
[1738183265968,0.1,104100.0,104090.0,0.59295]
[1738183266165,0.07101213,104110.0,104090.0,0.59295]
[1738183266361,0.07101213,104110.0,104100.0,0.75583159]
[1738183266557,0.07101213,104110.0,104100.0,0.80583159]
[1738183266763,0.19951415,104120.0,104110.0,0.192113]
[1738183266974,0.19951415,104120.0,104110.0,0.552913]
[1738183267163,0.11406941,104120.0,104110.0,0.552913]
[1738183267568,0.11406941,104120.0,104100.0,0.20289959]
[1738183267760,0.47486941,104120.0,104100.0,0.20289959]
[1738183267967,0.11406941,104120.0,104090.0,0.55408497]
[1738183268367,0.47486941,104120.0,104090.0,0.55408497]
[1738183268870,0.47486941,104120.0,104100.0,0.009]
[1738183268871,0.001,104110.0,104100.0,0.009]
[1738183269071,0.002,104110.0,104100.0,0.566932]
[1738183269267,0.001,104110.0,104100.0,0.557932]
[1738183270463,0.001,104110.0,104100.0,0.597932]
[1738183270662,0.00114397,104120.0,104100.0,0.60369959]
[1738183270868,0.00014397,104120.0,104110.0,0.552913]
[1738183271165,0.00014397,104120.0,104100.0,0.007]
[1738183271166,0.192113,104110.0,104100.0,0.007]
[1738183271370,0.552913,104110.0,104100.0,0.007]
[1738183271568,0.192113,104110.0,104100.0,0.007]
[1738183271768,0.552913,104110.0,104100.0,0.02025745]
[1738183271968,0.552913,104110.0,104100.0,0.007]
[1738183272276,0.55304797,104120.0,104100.0,0.007]
[1738183272569,0.00014397,104120.0,104100.0,0.011]
[1738183272778,0.36094397,104120.0,104100.0,0.011]
[1738183272967,0.00014397,104120.0,104110.0,0.552913]
[1738183273169,0.00014397,104120.0,104110.0,0.762913]
[1738183273373,0.192043,104150.0,104130.0,0.192069]
[1738183273677,0.00192049,104140.0,104130.0,0.602869]
[1738183273863,0.552843,104150.0,104130.0,0.192069]
[1738183274069,0.56369959,104140.0,104110.0,0.63662]
[1738183274266,0.192095,104120.0,104110.0,0.02152]
[1738183274467,0.192095,104120.0,104110.0,0.001]
[1738183274777,0.552895,104120.0,104110.0,0.00114397]
[1738183275170,0.192095,104120.0,104110.0,0.00114397]
[1738183275366,0.55300797,104140.0,104120.0,0.192095]
[1738183275568,0.56384356,104140.0,104110.0,0.00114397]
[1738183275769,0.552895,104120.0,104110.0,0.00114397]
[1738183275963,0.75579459,104120.0,104110.0,0.00014397]
[1738183276169,0.75579459,104120.0,104110.0,1e-08]
[1738183276471,0.192149,104100.0,104070.0,0.19362496]
[1738183276678,0.3608,104090.0,104070.0,0.00144096]
[1738183276878,0.552962,104090.0,104070.0,0.19362796]
[1738183277377,0.192143,104100.0,104080.0,0.192169]
[1738183277776,0.19229397,104090.0,104070.0,0.19376893]
[1738183277971,0.19629397,104090.0,104070.0,0.24376893]
[1738183278170,0.19629397,104090.0,104070.0,0.60456893]
[1738183278479,0.19229397,104090.0,104080.0,0.192169]
[1738183278674,0.192169,104080.0,104070.0,0.01474333]
[1738183278875,0.552969,104080.0,104070.0,0.00158493]
[1738183280264,0.552969,104080.0,104070.0,0.00358493]
[1738183280771,0.552969,104080.0,104070.0,0.00458493]
[1738183280975,0.001,104080.0,104070.0,0.59957193]
[1738183281969,0.00014397,104090.0,104080.0,0.192169]
[1738183282179,1e-08,104090.0,104080.0,0.95586859]
[1738183282488,1e-08,104090.0,104080.0,0.752969]
[1738183283079,1e-08,104090.0,104080.0,0.95586859]
[1738183283588,1e-08,104090.0,104080.0,0.95786859]
[1738183283873,1e-08,104090.0,104080.0,0.754969]
[1738183284274,1e-08,104090.0,104080.0,0.757969]
[1738183284676,0.33439744,104130.0,104110.0,0.192099]
[1738183284867,0.33439744,104130.0,104110.0,0.4108]
[1738183285069,0.413001,104140.0,104120.0,0.3608]
[1738183285275,0.33435944,104150.0,104140.0,0.192058]
[1738183285476,0.69515944,104150.0,104130.0,0.192073]
[1738183285778,0.192084,104130.0,104110.0,0.829731]
[1738183285976,0.192084,104130.0,104110.0,0.4759]
[1738183286178,0.69530341,104150.0,104130.0,0.192066]
[1738183286366,0.33450341,104150.0,104140.0,0.192058]
[1738183286571,0.14246041,104150.0,104140.0,0.192058]
[1738183287068,0.50326041,104150.0,104140.0,0.192058]
[1738183287472,0.15146041,104150.0,104140.0,0.193058]
[1738183287880,0.51226041,104150.0,104140.0,0.193058]
[1738183288174,0.14246041,104150.0,104140.0,0.80675759]
[1738183288381,0.14346041,104150.0,104140.0,0.75675759]
[1738183288976,0.14346041,104150.0,104140.0,0.193058]
[1738183289369,0.55398397,104150.0,104140.0,0.193058]
[1738183289571,0.36194397,104150.0,104140.0,0.20608205]
[1738183290283,0.55398397,104150.0,104140.0,0.20608205]
[1738183290771,0.55398397,104150.0,104140.0,0.01402405]
[1738183290971,0.55398397,104150.0,104140.0,0.001]
[1738183291171,0.192076,104130.0,104120.0,0.00014397]
[1738183291380,0.92449959,104130.0,104110.0,0.00144051]
[1738183291685,0.192136,104100.0,104080.0,0.401465]
[1738183291877,0.552918,104110.0,104090.0,0.192135]
[1738183292078,0.3608,104100.0,104080.0,0.5701]
[1738183292383,0.3608,104100.0,104080.0,0.192164]
[1738183292573,0.552936,104100.0,104080.0,0.192164]
[1738183292776,0.55295,104090.0,104080.0,0.00014397]
[1738183293078,0.55295,104090.0,104080.0,0.01251031]
[1738183293283,0.55295,104090.0,104080.0,0.19231297]
[1738183293481,0.3608,104090.0,104080.0,0.19231297]
[1738183293677,0.19215,104090.0,104080.0,0.19231297]
[1738183293984,0.19215,104090.0,104080.0,0.00014397]
[1738183293985,0.55295,104090.0,104080.0,0.00014397]
[1738183294187,0.55395,104090.0,104080.0,0.00914397]
[1738183294372,0.75684959,104090.0,104080.0,0.00914397]
[1738183294570,0.192169,104080.0,104070.0,0.00144096]
[1738183294779,0.552969,104080.0,104070.0,0.00144096]
[1738183296177,0.001,104090.0,104080.0,0.192169]
[1738183296373,0.00014397,104100.0,104080.0,0.4108]
[1738183296686,0.2196,104120.0,104110.0,0.192113]
[1738183296874,0.3608,104120.0,104110.0,0.192113]
[1738183297283,0.56513712,104130.0,104120.0,0.192095]
[1738183297475,0.774962,104140.0,104120.0,0.192095]
[1738183297782,0.3608,104130.0,104120.0,0.192095]
[1738183298388,0.55300597,104140.0,104130.0,0.192077]
[1738183298389,0.36094397,104140.0,104130.0,0.192077]
[1738183298589,0.00014397,104140.0,104130.0,0.192077]
[1738183299089,0.3608,104170.0,104130.0,0.4208]
[1738183299275,0.192006,104170.0,104150.0,0.192026]
[1738183299474,0.3608,104170.0,104160.0,0.192018]
[1738183299674,0.3608,104170.0,104140.0,0.56369959]
[1738183299980,0.72441629,104160.0,104150.0,0.192037]
[1738183300182,0.72441629,104160.0,104140.0,0.192054]
[1738183300382,0.53239529,104160.0,104140.0,0.01210178]
[1738183300689,0.53239529,104160.0,104150.0,0.19204]
[1738183300891,0.17159529,104160.0,104150.0,0.19204]
[1738183301083,0.53239529,104160.0,104150.0,0.19204]
[1738183301789,0.18059529,104160.0,104150.0,0.19204]
[1738183301990,0.18059529,104160.0,104150.0,0.60284]
[1738183302190,0.18459529,104160.0,104150.0,0.55284]
[1738183302689,0.18459529,104160.0,104150.0,0.66284]
[1738183303082,1e-08,104170.0,104160.0,0.192021]
[1738183303286,1e-08,104170.0,104160.0,0.552821]
[1738183303487,0.1,104200.0,104160.0,0.61369959]
[1738183303682,0.1,104200.0,104190.0,0.191966]
[1738183303888,0.2713684,104200.0,104190.0,0.191966]
[1738183304184,0.2713684,104200.0,104190.0,0.552766]
[1738183304579,0.2743684,104200.0,104190.0,0.762666]
[1738183305278,0.2733684,104200.0,104190.0,0.762666]
[1738183305689,0.2733684,104200.0,104190.0,1.038566]
[1738183305690,0.002,104200.0,104190.0,1.038566]
[1738183305894,0.19914685,104210.0,104200.0,0.191948]
[1738183306095,0.19914685,104210.0,104200.0,0.552748]
[1738183306596,0.19914685,104210.0,104200.0,0.602748]
[1738183307093,0.19914685,104210.0,104200.0,0.552748]
[1738183307500,0.20814685,104210.0,104200.0,0.673748]
[1738183307685,0.21214685,104210.0,104200.0,0.673748]
[1738183308288,0.18113569,104210.0,104200.0,0.673748]
[1738183308992,0.00909602,104210.0,104200.0,0.312948]
[1738183309197,0.20302502,104210.0,104200.0,0.121]
[1738183309402,0.01109602,104210.0,104200.0,0.121]
[1738183309700,0.01109602,104210.0,104200.0,0.553748]
[1738183310094,0.01109602,104210.0,104200.0,0.001]
[1738183310297,0.20302502,104210.0,104200.0,0.001]
[1738183310594,0.191966,104190.0,104180.0,0.00014397]
[1738183310791,0.552766,104190.0,104180.0,0.00014397]
[1738183311294,0.913566,104190.0,104180.0,0.00014397]
[1738183311494,0.92449959,104190.0,104160.0,6.768e-05]
[1738183311683,0.192021,104160.0,104150.0,0.00144001]
[1738183311890,0.552821,104160.0,104150.0,0.00144001]
[1738183312089,0.552821,104160.0,104150.0,0.14144001]
[1738183312508,0.552821,104160.0,104150.0,0.00144001]
[1738183312697,0.7886,104170.0,104150.0,0.00144001]
[1738183312993,0.19215597,104170.0,104150.0,0.59427801]
[1738183313190,0.19215597,104170.0,104150.0,0.56427801]
[1738183313591,0.19215597,104170.0,104150.0,0.20347801]
[1738183313796,0.192021,104160.0,104150.0,0.01144001]
[1738183314199,0.552821,104160.0,104150.0,0.01144001]
[1738183314395,0.36094397,104170.0,104150.0,0.01544001]
[1738183314596,0.192021,104160.0,104150.0,0.01544001]
[1738183314791,0.19315497,104170.0,104150.0,0.57728001]
[1738183314993,0.00114397,104170.0,104160.0,0.552821]
[1738183315193,0.00114397,104170.0,104160.0,0.612821]
[1738183315394,0.191951,104200.0,104180.0,0.191978]
[1738183315600,0.191933,104210.0,104190.0,0.552766]
[1738183315902,0.191906,104230.0,104200.0,0.5511343]
[1738183316097,1.060468,104240.0,104200.0,0.5611343]
[1738183316403,1.060468,104240.0,104200.0,0.3708]
[1738183316404,0.191929,104210.0,104200.0,0.3708]
[1738183316701,0.191929,104210.0,104200.0,0.01]
[1738183317301,0.191929,104210.0,104200.0,0.3708]
[1738183317496,0.56369959,104210.0,104190.0,0.02014397]
[1738183317698,0.552748,104200.0,104190.0,0.02014397]
[1738183318196,0.192014,104170.0,104150.0,0.55427601]
[1738183318397,0.192014,104170.0,104150.0,0.74427601]
[1738183318897,0.192021,104160.0,104150.0,0.55224001]
[1738183319088,0.192009,104170.0,104150.0,0.75638313]
[1738183319500,0.192021,104160.0,104150.0,0.2036901]
[1738183319698,0.552821,104160.0,104150.0,0.00158398]
[1738183319888,0.192067,104140.0,104110.0,0.552908]
[1738183320091,0.192094,104130.0,104110.0,0.752908]
[1738183320289,0.192095,104120.0,104110.0,0.5608]
[1738183320597,0.192077,104130.0,104110.0,0.752909]
[1738183321197,0.19222097,104130.0,104120.0,0.3608]
[1738183321599,0.192095,104120.0,104110.0,0.37894397]
[1738183322189,0.19222297,104130.0,104110.0,0.37894397]
[1738183322399,0.00014397,104130.0,104110.0,0.57505397]
[1738183322606,0.19222197,104130.0,104110.0,0.57505397]
[1738183322811,0.00014397,104130.0,104120.0,0.3608]
[1738183323103,0.75592056,104130.0,104120.0,0.01]
[1738183323400,0.75592056,104130.0,104110.0,0.00414397]
[1738183323401,0.192095,104120.0,104110.0,0.00414397]
[1738183323601,0.552895,104120.0,104110.0,0.00414397]
[1738183324191,0.192095,104120.0,104110.0,0.00414397]
[1738183324702,0.193095,104120.0,104110.0,0.01314397]
[1738183324908,0.193095,104120.0,104110.0,0.36994397]
[1738183325098,0.193095,104120.0,104110.0,0.56205797]
[1738183325297,0.193095,104120.0,104110.0,0.00914397]
[1738183325699,0.001,104120.0,104110.0,0.57705797]
[1738183326095,0.001,104120.0,104110.0,0.38494397]
[1738183326293,0.193095,104120.0,104110.0,0.02414397]
[1738183326800,0.553895,104120.0,104110.0,0.01414397]
[1738183327101,0.193095,104120.0,104110.0,0.01414397]
[1738183327300,0.001,104120.0,104110.0,0.56705797]
[1738183327513,0.001,104120.0,104110.0,0.77995756]
[1738183327706,0.00014397,104130.0,104120.0,0.192095]
[1738183327909,0.00014397,104130.0,104120.0,0.562895]
[1738183328995,0.00014397,104130.0,104120.0,0.565895]
[1738183330509,0.00014397,104130.0,104120.0,0.3738]
[1738183330708,0.55302097,104130.0,104120.0,0.013]
[1738183330913,0.75592056,104130.0,104120.0,0.019]
[1738183331403,0.39512056,104130.0,104120.0,0.019]
[1738183331605,0.00014397,104130.0,104120.0,0.571895]
[1738183332007,0.08528393,104170.0,104120.0,0.78782015]
[1738183332213,0.08528393,104170.0,104160.0,0.3608]
[1738183332397,0.08528393,104170.0,104160.0,0.552821]
[1738183332602,0.27728693,104170.0,104150.0,0.562837]
[1738183332907,0.552821,104160.0,104150.0,0.03]
[1738183333116,0.84654158,104160.0,104150.0,0.00014397]
[1738183333411,0.63693503,104160.0,104150.0,1e-08]
[1738183333611,0.99773503,104160.0,104150.0,1e-08]
[1738183334003,0.63693503,104160.0,104150.0,1e-08]
[1738183334204,0.19919945,104160.0,104150.0,0.19204001]
[1738183334410,0.19919945,104160.0,104150.0,0.60284001]
[1738183334903,0.20319945,104160.0,104150.0,0.60384001]
[1738183335098,0.21219945,104160.0,104150.0,0.60484001]
[1738183335307,0.13073938,104170.0,104150.0,0.71280001]
[1738183335612,0.0905489,104180.0,104170.0,0.192003]
[1738183335815,0.0905489,104180.0,104170.0,0.752803]
[1738183336107,0.16803967,104200.0,104190.0,0.191966]
[1738183336308,0.16803967,104200.0,104190.0,0.973566]
[1738183337805,0.00014397,104210.0,104200.0,0.191948]
[1738183338005,0.55287297,104210.0,104190.0,0.37276246]
[1738183338209,0.200948,104200.0,104190.0,0.011]
[1738183338404,0.200948,104200.0,104190.0,0.001]
[1738183338607,0.200948,104200.0,104190.0,0.002]
[1738183338805,0.552748,104200.0,104190.0,0.001]
[1738183339420,0.191966,104190.0,104180.0,0.00014397]
[1738183339710,0.19207597,104210.0,104190.0,0.19196]
[1738183339908,0.00014397,104210.0,104200.0,0.552748]
[1738183340107,0.00014397,104210.0,104200.0,0.562748]
[1738183340605,0.19207297,104210.0,104200.0,0.3708]
[1738183340809,0.19207297,104210.0,104200.0,0.3608]
[1738183341116,0.00014397,104210.0,104200.0,0.552748]
[1738183341311,0.00014397,104210.0,104200.0,0.3608]
[1738183341609,0.55287297,104210.0,104200.0,0.001]
[1738183341809,0.79828182,104210.0,104200.0,0.001]
[1738183342709,0.19207297,104210.0,104200.0,0.001]
[1738183342909,0.00014397,104210.0,104200.0,0.553748]
[1738183343211,0.00014397,104210.0,104200.0,0.663748]
[1738183343515,0.19207297,104210.0,104200.0,0.302948]
[1738183343709,0.19207297,104210.0,104200.0,0.301948]
[1738183343908,0.00514397,104210.0,104200.0,0.662748]
[1738183344113,0.00514397,104210.0,104200.0,0.11]
[1738183344311,0.19707297,104210.0,104190.0,0.562764]
[1738183344512,0.19707297,104210.0,104190.0,0.572764]
[1738183345019,0.19207297,104210.0,104200.0,0.001]
[1738183345211,0.19207297,104210.0,104200.0,0.002]
[1738183345403,0.55287297,104210.0,104200.0,0.012]
[1738183345608,0.55287297,104210.0,104200.0,0.002]
[1738183346018,0.191948,104200.0,104180.0,1e-08]
[1738183346209,0.192021,104160.0,104150.0,0.22503942]
[1738183346607,0.552821,104160.0,104150.0,0.22503942]
[1738183347406,0.192021,104160.0,104150.0,0.22503942]
[1738183347722,0.192021,104160.0,104150.0,0.23203942]
[1738183347917,0.192021,104160.0,104150.0,0.23503942]
[1738183348815,0.192021,104160.0,104150.0,0.22803942]
[1738183349009,0.192021,104160.0,104150.0,0.01]
[1738183349616,0.552821,104160.0,104150.0,0.01]
[1738183350519,0.192021,104160.0,104150.0,0.3668]
[1738183350713,0.19215097,104170.0,104150.0,0.55884]
[1738183350915,0.192021,104160.0,104150.0,0.3618]
[1738183351221,0.192021,104160.0,104150.0,0.002]
[1738183351413,0.192021,104160.0,104150.0,0.2233]
[1738183351810,0.192021,104160.0,104150.0,0.77614]
[1738183352122,0.00314397,104170.0,104150.0,0.5931]
[1738183352326,0.192021,104160.0,104150.0,0.2323]
[1738183352827,0.192021,104160.0,104150.0,0.8162]
[1738183353722,0.003,104160.0,104150.0,1.00824]
[1738183354018,0.003,104160.0,104150.0,1.00724]
[1738183354225,0.003,104160.0,104150.0,1.01024]
[1738183355427,0.00014397,104170.0,104160.0,0.192021]
[1738183355723,0.00014397,104170.0,104160.0,1.01462985]
[1738183355911,0.191972,104190.0,104170.0,0.19199]
[1738183356112,0.3608,104190.0,104170.0,0.01]
[1738183356318,0.192003,104170.0,104160.0,0.4192]
[1738183357015,0.552803,104170.0,104160.0,0.4192]
[1738183357218,0.192021,104160.0,104150.0,0.22324397]
[1738183357619,0.552821,104160.0,104150.0,0.00014397]
[1738183357824,0.413321,104160.0,104150.0,0.00014397]
[1738183358027,0.192077,104130.0,104120.0,0.22503942]
[1738183358212,0.192095,104120.0,104110.0,0.61758784]
[1738183358415,0.413395,104120.0,104110.0,0.61758784]
[1738183358615,0.774195,104120.0,104110.0,0.61758784]
[1738183359331,0.622995,104120.0,104110.0,0.61758784]
[1738183359620,0.983795,104120.0,104110.0,0.61758784]
[1738183360421,0.987795,104120.0,104110.0,0.61758784]
[1738183360617,0.626995,104120.0,104110.0,0.61758784]
[1738183360817,0.192114,104110.0,104100.0,0.29226997]
[1738183361220,0.192114,104110.0,104100.0,0.65306997]
[1738183361421,0.192114,104110.0,104100.0,0.29226997]
[1738183361829,0.552914,104110.0,104100.0,0.10014397]
[1738183362427,0.192114,104110.0,104100.0,0.10014397]
[1738183362621,0.005,104120.0,104100.0,0.70635282]
[1738183362924,0.005,104120.0,104110.0,0.192114]
[1738183363126,0.19222297,104130.0,104110.0,0.3608]
[1738183363334,0.5857,104140.0,104120.0,0.19209]
[1738183363517,0.192082,104130.0,104120.0,0.40149]
[1738183363715,0.192082,104130.0,104120.0,0.98329]
[1738183363927,0.192082,104130.0,104120.0,0.62249]
[1738183364521,0.3608,104130.0,104110.0,0.771808]
[1738183364715,0.192095,104120.0,104110.0,0.5797]
[1738183364918,0.192114,104110.0,104100.0,0.73697197]
[1738183365129,0.552914,104110.0,104100.0,0.10014397]
[1738183365822,0.192114,104110.0,104100.0,0.29227597]
[1738183366018,0.192114,104110.0,104100.0,0.65307597]
[1738183366234,0.19224797,104120.0,104100.0,0.89848482]
[1738183366735,0.19224797,104120.0,104110.0,0.192114]
[1738183367432,0.19224797,104120.0,104110.0,0.552914]
[1738183367729,0.19224797,104120.0,104110.0,0.619314]
[1738183367933,0.19224797,104120.0,104110.0,0.195114]
[1738183368131,0.55304797,104120.0,104110.0,0.006]
[1738183368435,0.55304797,104120.0,104110.0,0.003]
[1738183368631,0.55304797,104120.0,104110.0,0.198114]
[1738183368836,0.00014397,104120.0,104110.0,0.668914]
[1738183369737,0.192095,104120.0,104110.0,0.006]
[1738183371137,0.192095,104120.0,104110.0,0.003]
[1738183371323,0.192095,104120.0,104110.0,0.005]
[1738183371528,0.552895,104120.0,104110.0,0.005]
[1738183371731,0.771495,104120.0,104110.0,0.005]
[1738183371931,0.978595,104120.0,104110.0,0.005]
[1738183372331,0.978595,104120.0,104110.0,0.008]
[1738183372941,0.978595,104120.0,104110.0,0.005]
[1738183373337,0.617795,104120.0,104110.0,0.557914]
[1738183373542,0.19218201,104130.0,104120.0,0.192095]
[1738183373747,0.19218201,104130.0,104120.0,1.104595]
[1738183374050,9.601e-05,104130.0,104120.0,1.034595]
[1738183374243,0.19217301,104130.0,104120.0,1.199295]
[1738183374439,0.19217301,104130.0,104120.0,0.984595]
[1738183374646,0.19217301,104130.0,104120.0,0.623795]
[1738183374850,0.19217301,104130.0,104120.0,0.624795]
[1738183376841,0.19217301,104130.0,104120.0,0.623795]
[1738183377043,0.55297301,104130.0,104120.0,0.625795]
[1738183377249,0.19217301,104130.0,104120.0,0.625795]
[1738183377852,0.19217301,104130.0,104120.0,0.624795]
[1738183378949,9.601e-05,104130.0,104120.0,1.035595]
[1738183379251,0.14247934,104150.0,104120.0,0.8435]
[1738183379456,0.14247934,104150.0,104140.0,0.552858]
[1738183379655,0.14247934,104150.0,104140.0,0.592858]
[1738183380351,0.14247934,104150.0,104140.0,0.953658]
[1738183380649,0.16803967,104170.0,104160.0,0.192021]
[1738183380857,0.22576832,104180.0,104170.0,0.192003]
[1738183381149,0.22576832,104180.0,104170.0,1.170603]
[1738183381348,0.58656832,104180.0,104160.0,0.00014397]
[1738183381652,0.192003,104170.0,104160.0,0.00014397]
[1738183382843,0.22576832,104180.0,104170.0,0.192003]
[1738183383040,0.22576832,104180.0,104170.0,0.672803]
[1738183383244,0.22676832,104180.0,104170.0,0.672803]
[1738183383457,0.001,104180.0,104170.0,0.672803]
[1738183383951,0.001,104180.0,104170.0,0.897103]
[1738183384155,0.001,104180.0,104170.0,0.777103]
[1738183384347,0.192003,104170.0,104160.0,9.7e-07]
[1738183384544,0.3608,104170.0,104140.0,0.28129928]
[1738183384850,0.55284,104150.0,104140.0,0.28129928]
[1738183385155,0.19204,104150.0,104140.0,0.28129928]
[1738183385356,0.55284,104150.0,104140.0,0.28129928]
[1738183386254,0.3608,104150.0,104140.0,0.47335428]
[1738183386450,0.76566897,104160.0,104140.0,0.47335428]
[1738183386653,0.3608,104150.0,104140.0,0.47335428]
[1738183386860,0.55284,104150.0,104140.0,0.28129928]
[1738183387050,0.55284,104150.0,104140.0,0.28229928]
[1738183387251,0.55284,104150.0,104140.0,0.28629928]
[1738183387651,0.192058,104140.0,104130.0,0.00066397]
[1738183387855,0.552858,104140.0,104130.0,0.00014397]
[1738183388355,1.01226685,104140.0,104130.0,0.00014397]
[1738183388756,0.766858,104140.0,104130.0,0.00014397]
[1738183389957,0.552858,104140.0,104130.0,0.00114397]
[1738183390161,0.3608,104140.0,104130.0,0.19322097]
[1738183390357,0.83607097,104160.0,104140.0,0.192058]
[1738183390559,0.00014397,104160.0,104150.0,0.19204]
[1738183390858,0.00014397,104160.0,104150.0,0.84614]
[1738183391457,0.00014397,104160.0,104150.0,0.94614]
[1738183392364,0.00514397,104160.0,104150.0,0.94614]
[1738183392550,0.00514397,104160.0,104150.0,1.30694]
[1738183392754,0.552788,104180.0,104160.0,0.192012]
[1738183393362,0.192003,104170.0,104160.0,0.192012]
[1738183393865,0.552772,104190.0,104170.0,0.191998]
[1738183394165,0.552772,104190.0,104180.0,0.4309]
[1738183394458,0.77763762,104200.0,104180.0,0.4809]
[1738183394658,0.77763762,104200.0,104190.0,0.191966]
[1738183394659,0.552752,104200.0,104190.0,0.191966]
[1738183394968,0.552752,104200.0,104130.0,0.1712979]
[1738183394969,0.3608,104170.0,104130.0,0.1712979]
[1738183395151,0.552858,104140.0,104130.0,0.1712979]
[1738183396356,0.552858,104140.0,104130.0,0.1732979]
[1738183396552,0.3608,104140.0,104130.0,0.36393472]
[1738183397163,0.3608,104140.0,104130.0,0.59033472]
[1738183397563,0.3608,104140.0,104130.0,0.79593472]
[1738183397956,0.3608,104140.0,104130.0,0.39825772]
[1738183397957,0.552858,104140.0,104130.0,0.39825772]
[1738183398157,0.36094397,104150.0,104130.0,0.40125772]
[1738183398359,0.36094397,104150.0,104140.0,0.192058]
[1738183398555,0.47512766,104160.0,104150.0,0.19204]
[1738183398762,0.3608,104170.0,104150.0,0.05]
[1738183398953,0.3608,104170.0,104160.0,0.2264]
[1738183399159,0.3608,104170.0,104160.0,0.418413]
[1738183399359,0.552803,104170.0,104160.0,0.2264]
[1738183399562,0.552803,104170.0,104140.0,0.2754]
[1738183399563,0.60620885,104170.0,104140.0,0.2754]
[1738183399758,0.91364,104150.0,104140.0,0.7083]
[1738183400062,0.91364,104150.0,104140.0,0.05034397]
[1738183400262,0.91364,104150.0,104140.0,0.04834397]
[1738183401067,0.91364,104150.0,104140.0,0.00114397]
[1738183401263,1.15904885,104150.0,104140.0,0.00114397]
[1738183402069,1.16104885,104150.0,104140.0,0.00114397]
[1738183402867,1.15904885,104150.0,104140.0,0.00314397]
[1738183403463,0.91364,104150.0,104140.0,0.00314397]
[1738183403772,0.91564,104150.0,104140.0,0.00014397]
[1738183403962,1.16104885,104150.0,104140.0,0.00014397]
[1738183404157,1.16104885,104150.0,104140.0,0.19320197]
[1738183404364,0.7236,104150.0,104140.0,0.19320197]
[1738183405063,0.7236,104150.0,104140.0,0.24320197]
[1738183405367,0.3608,104160.0,104140.0,0.51205282]
[1738183405571,0.191987,104180.0,104170.0,0.192003]
[1738183405763,0.913587,104180.0,104170.0,0.192003]
[1738183406160,0.3608,104180.0,104170.0,0.242003]
[1738183406570,0.3608,104180.0,104170.0,0.192003]
[1738183407165,0.53248384,104190.0,104170.0,0.05]
[1738183407366,0.53248384,104190.0,104170.0,0.041]
[1738183407565,0.53248384,104190.0,104180.0,0.191984]
[1738183407765,0.89328384,104190.0,104180.0,0.241984]
[1738183408362,1.08524984,104190.0,104180.0,0.191984]
[1738183408761,0.89328384,104190.0,104180.0,0.241984]
[1738183409367,1.08524984,104190.0,104180.0,0.242984]
[1738183409873,0.17168384,104190.0,104180.0,0.242984]
[1738183410377,0.272273,104230.0,104190.0,0.047991]